bitfinex-derivatives/quotes_ETHF0:USTF0_20260204
["timestamp","ask_amount","ask_price","bid_price","bid_amount"]
[1770208012097,3.88035154,2247.0,2246.7,7.6931345]
[1770208012395,2.84239986,2247.2,2246.7,7.6931345]
[1770208012396,2.61957986,2247.2,2246.8,0.16990611]
[1770208012696,39.29369799,2247.5,2247.0,4.44640001]
[1770208012892,39.29369799,2247.5,2246.9,4.44640001]
[1770208013093,3.88216425,2247.4,2247.1,4.44640001]
[1770208013295,3.88216425,2247.3,2246.8,7.86472607]
[1770208013596,41.06677,2247.7,2246.8,7.6931345]
[1770208013597,3.88216425,2247.2,2246.8,7.6931345]
[1770208013893,39.51648799,2247.5,2246.8,7.6931345]
[1770208014095,39.29369799,2246.9,2245.8,0.17159157]
[1770208014296,0.22288,2246.6,2245.6,5.32710079]
[1770208014496,39.29369799,2246.4,2245.1,5.49869236]
[1770208014797,3.86844235,2246.3,2245.1,0.17159157]
[1770208015096,3.86844235,2246.2,2245.4,4.61752887]
[1770208015297,3.86844235,2246.1,2245.5,4.44640001]
[1770208015501,0.00356257,2246.3,2245.6,4.44640001]
[1770208015699,3.86756409,2246.2,2245.7,4.44640001]
[1770208015898,3.86756409,2246.1,2246.0,4.44640001]
[1770208016193,0.00356257,2246.3,2246.0,4.61752887]
[1770208016398,0.38363199,2246.7,2246.1,4.25520005]
[1770208016699,0.38363199,2246.7,2245.1,0.00451413]
[1770208016899,39.67732998,2246.7,2245.1,0.00451413]
[1770208017198,0.16076199,2246.6,2245.2,4.25520005]
[1770208017398,0.1660331,2246.6,2245.2,4.25520005]
[1770208018500,0.00527111,2246.6,2245.3,0.16720472]
[1770208018902,0.00527111,2246.6,2245.5,0.16720472]
[1770208019404,0.00527111,2246.6,2245.7,0.16720472]
[1770208019901,0.00527111,2246.6,2245.9,0.16720472]
[1770208020294,0.00527111,2246.6,2246.1,0.16720472]
[1770208020499,0.00527111,2246.6,2246.2,4.42240477]
[1770208020698,0.00527111,2246.6,2246.2,0.16720472]
[1770208021002,0.20472201,2247.4,2246.4,0.16720472]
[1770208021394,0.16072201,2247.3,2246.5,4.25520005]
[1770208021699,39.29369799,2247.0,2245.8,0.16720472]
[1770208022003,39.45967273,2247.0,2246.0,0.16720472]
[1770208022401,39.45967273,2247.0,2246.1,3.47840853]
[1770208022596,0.00525273,2247.0,2246.2,0.16720472]
[1770208023002,0.00525273,2247.0,2246.3,3.64561325]
[1770208023302,0.00525273,2247.0,2246.3,0.16720472]
[1770208023503,0.00525273,2247.0,2246.4,3.47840853]
[1770208024804,0.00525273,2247.0,2246.4,3.64561325]
[1770208025402,0.22282,2247.2,2246.5,0.16720472]
[1770208025604,0.16072201,2247.5,2246.5,3.47840853]
[1770208025805,0.16072201,2246.9,2246.5,3.02166853]
[1770208026205,0.16072201,2246.7,2245.6,0.16720472]
[1770208026405,0.00347847,2246.7,2245.6,0.16720472]
[1770208026610,0.00347847,2246.7,2245.8,0.16720472]
[1770208026813,0.044,2247.2,2245.8,0.16720472]
[1770208027111,0.044,2247.2,2246.0,0.16720472]
[1770208027611,0.044,2247.2,2246.2,0.16720472]
[1770208027915,0.38348201,2247.8,2246.2,0.16720472]
[1770208028113,3.82320275,2247.7,2246.4,0.16720472]
[1770208028314,3.82320275,2247.6,2246.4,0.16720472]
[1770208028512,3.82320275,2247.5,2246.6,0.16720472]
[1770208028712,3.82320275,2247.4,2246.8,0.16720472]
[1770208028912,39.45442,2248.0,2246.8,0.17146013]
[1770208029108,3.82627515,2247.9,2247.0,0.16720472]
[1770208029318,0.16072201,2247.7,2246.9,3.01621982]
[1770208029506,0.16072201,2247.4,2246.4,0.16720472]
[1770208029711,0.16072201,2247.3,2246.4,0.16720472]
[1770208030008,3.82627515,2247.2,2246.4,0.16720472]
[1770208030510,3.82627515,2247.1,2246.4,0.17083521]
[1770208030711,0.00462326,2247.2,2246.4,0.17083521]
[1770208031008,0.16534527,2247.2,2246.4,0.00363049]
[1770208031315,0.16072201,2247.1,2246.4,0.00363049]
[1770208031616,0.00462326,2247.2,2246.4,0.00363049]
[1770208031807,0.00462326,2247.2,2246.4,0.11839939]
[1770208032010,39.29369799,2247.6,2246.4,0.11839939]
[1770208032210,39.45442,2247.7,2246.4,0.11839939]
[1770208032411,39.45442,2247.6,2246.4,0.11839939]
[1770208033015,39.45902396,2247.6,2246.4,0.11839939]
[1770208033210,0.16532597,2247.6,2246.4,0.11839939]
[1770208033411,39.45902396,2247.6,2246.4,0.11839939]
[1770208034312,0.00460396,2247.6,2246.5,0.11212074]
[1770208035316,0.00460396,2247.6,2246.5,0.33500074]
[1770208035516,0.00460396,2247.6,2246.6,0.11212074]
[1770208036314,0.16072201,2247.8,2246.9,0.11190179]
[1770208037313,0.16410847,2247.8,2246.9,0.11190179]
[1770208038011,0.00338646,2247.8,2246.9,0.11190179]
[1770208038412,39.45442,2248.1,2246.9,0.33475179]
[1770208038620,39.29369799,2248.2,2247.2,0.10510232]
[1770208039117,0.16925563,2248.7,2247.4,0.22279]
[1770208039612,0.17250129,2248.7,2247.4,0.22279]
[1770208040317,0.17060864,2248.6,2247.3,0.8899]
[1770208042616,0.16982911,2248.4,2247.3,0.8899]
[1770208042818,0.16982911,2248.2,2247.3,0.8899]
[1770208043817,0.16873189,2248.0,2247.3,0.8899]
[1770208044017,0.16873189,2247.8,2247.3,0.8899]
[1770208049019,0.16756829,2247.6,2246.4,0.16538747]
[1770208049221,0.1584704,2247.4,2246.4,0.16538747]
[1770208049423,0.1584704,2247.2,2246.4,0.00363049]
[1770208049722,3.55910013,2247.1,2246.5,0.16175698]
[1770208049922,0.00556023,2247.1,2246.4,0.00363049]
[1770208050121,0.1747993,2247.1,2246.4,0.00363049]
[1770208054921,0.00556023,2247.1,2246.4,0.00363049]
[1770208055122,0.00556023,2247.1,2246.4,0.00448411]
[1770208055727,0.00556023,2247.1,2246.4,0.22737411]
[1770208056730,0.00556023,2247.1,2246.5,0.0015847]
[1770208058930,0.00556023,2247.1,2246.5,0.2244747]
[1770208059130,5.23915973,2247.5,2246.7,0.00107748]
[1770208059330,5.40786006,2247.6,2246.7,0.00107748]
[1770208060020,5.41350482,2247.6,2246.7,0.00107748]
[1770208060429,0.17434509,2247.6,2246.7,0.00107748]
[1770208061130,5.41350482,2247.6,2246.7,0.00107748]
[1770208061732,3.73256162,2247.5,2246.7,0.00107748]
[1770208061931,3.73256162,2247.4,2246.7,0.00107748]
[1770208062131,5.41350482,2247.6,2246.8,0.22285]
[1770208062132,0.17459396,2247.6,2246.8,0.22285]
[1770208066131,2.05068,2246.4,2244.0,7.97920236]
[1770208066330,0.22298,2245.6,2244.3,0.16923906]
[1770208066531,46.30234329,2245.6,2244.3,0.16923906]
[1770208066834,5.27988183,2244.9,2244.4,10.37219549]
[1770208067029,5.28456962,2244.9,2244.4,0.00376284]
[1770208067232,4.83916962,2245.1,2244.5,10.37219549]
[1770208067634,4.83916962,2245.1,2244.6,13.04530542]
[1770208067830,0.1584704,2245.5,2244.6,13.04530542]
[1770208068134,6.59920412,2244.8,2243.9,0.22196456]
[1770208068331,0.1584704,2244.6,2242.9,0.22324]
[1770208068630,6.59920412,2244.2,2242.4,1.25044]
[1770208068826,6.75767452,2244.3,2242.4,0.22329]
[1770208069029,39.3443286,2243.8,2242.7,0.16175698]
[1770208069229,0.1584704,2243.8,2242.7,0.16175698]
[1770208069536,39.3443286,2244.0,2243.2,0.16175698]
[1770208069831,0.14765947,2243.6,2242.4,0.00525891]
[1770208070129,39.36307964,2243.2,2242.4,0.00525891]
[1770208070334,39.21542017,2243.3,2242.6,0.16175698]
[1770208070526,39.21542017,2243.7,2243.0,0.16175698]
[1770208070731,39.36307964,2243.6,2242.4,0.16175698]
[1770208071029,39.21542017,2243.7,2242.4,0.16175698]
[1770208071231,39.21542017,2243.8,2242.6,0.16175698]
[1770208071733,2.62019951,2244.0,2243.0,0.16175698]
[1770208071734,39.21542017,2244.0,2243.0,0.16175698]
[1770208071933,0.15328002,2243.8,2242.7,0.16175698]
[1770208072236,0.15328002,2243.6,2242.7,0.16175698]
[1770208072430,39.36870019,2243.3,2242.4,0.0054741]
[1770208072631,2.59583367,2242.9,2241.6,0.915]
[1770208072830,2.59583367,2243.1,2241.8,0.16175698]
[1770208073027,2.59583367,2243.1,2242.0,0.16175698]
[1770208073334,2.62019951,2242.3,2239.5,0.16923906]
[1770208073530,39.21542017,2241.6,2240.4,0.16923906]
[1770208073735,0.00350198,2242.3,2240.8,0.16786136]
[1770208073931,0.00350198,2242.3,2241.2,0.16786136]
[1770208074131,0.00350198,2242.3,2241.4,0.16786136]
[1770208074332,5.11084615,2242.2,2241.5,0.16786136]
[1770208074530,0.00350198,2242.3,2241.5,0.16786136]
[1770208074733,5.11083863,2242.2,2241.6,0.61422019]
[1770208074932,0.00350198,2242.3,2241.6,0.61422019]
[1770208075537,0.00350198,2242.3,2241.7,0.0045]
[1770208075731,5.10108554,2242.2,2241.7,0.0045]
[1770208075936,0.00350198,2242.3,2241.7,0.0045]
[1770208076637,0.00350198,2242.3,2241.7,0.44635883]
[1770208077039,0.00350198,2242.3,2241.8,0.17546425]
[1770208077238,2.66419951,2243.0,2241.7,0.44635883]
[1770208077239,2.58992889,2243.2,2242.1,0.17413759]
[1770208077440,5.08833036,2243.1,2242.1,0.17413759]
[1770208077638,2.58992889,2243.4,2242.3,0.17413759]
[1770208077837,5.08865108,2243.3,2242.3,0.17413759]
[1770208078036,5.08865108,2243.2,2242.4,0.44635883]
[1770208078342,0.00548838,2243.2,2242.4,0.44635883]
[1770208078540,0.00548838,2243.2,2242.4,0.62049627]
[1770208078935,0.00548838,2243.2,2242.4,0.44635883]
[1770208079142,0.00548838,2243.2,2242.5,0.17413744]
[1770208079336,0.00548838,2243.2,2242.6,0.17413744]
[1770208079643,0.00548838,2243.2,2242.7,1.33965527]
[1770208080241,0.00548838,2243.2,2242.8,1.16551783]
[1770208080439,5.21800404,2243.8,2243.0,1.16551783]
[1770208080639,0.044,2243.9,2242.9,0.17307836]
[1770208080640,5.08316641,2243.7,2242.9,0.17307836]
[1770208080838,5.21800404,2244.2,2243.1,0.17307836]
[1770208081039,2.62807515,2243.8,2243.0,0.44635883]
[1770208081534,2.62807515,2243.1,2241.4,0.17387998]
[1770208081742,2.62807515,2243.1,2241.5,0.17387998]
[1770208081943,2.58992889,2243.6,2242.4,0.17387998]
[1770208082238,0.00382641,2243.8,2242.6,0.17387998]
[1770208082440,0.00382641,2243.8,2243.1,0.17387998]
[1770208082742,2.62807515,2243.6,2242.9,1.16551783]
[1770208082947,2.62807515,2243.6,2242.9,0.17387998]
[1770208083147,2.62807515,2243.6,2243.1,1.33939781]
[1770208083348,2.62807515,2243.6,2243.1,0.17387998]
[1770208083648,0.00382641,2243.8,2242.6,0.00549974]
[1770208083649,0.00382641,2243.8,2243.2,0.18016795]
[1770208083848,0.00382641,2243.8,2242.6,0.04949974]
[1770208083849,0.00382641,2243.8,2243.4,0.18016795]
[1770208084349,0.00382641,2243.8,2243.5,0.18016795]
[1770208084647,2.62807515,2244.0,2243.6,0.18016795]
[1770208085047,5.21800404,2244.4,2243.6,0.18016795]
[1770208085245,7.68156868,2244.3,2243.6,0.18016795]
[1770208085448,5.09163979,2244.2,2243.7,0.18016795]
[1770208085644,5.44107404,2244.7,2243.8,0.17976195]
[1770208085847,5.0942077,2244.6,2243.9,0.17976195]
[1770208086050,5.0942077,2244.5,2243.9,0.17976195]
[1770208086248,4.89499521,2244.4,2244.1,1.34527978]
[1770208086449,5.21800404,2244.7,2243.5,0.044]
[1770208086450,5.21800404,2244.7,2243.7,0.17976195]
[1770208086650,5.22281726,2244.7,2243.7,0.17976195]
[1770208087052,2.62807515,2244.3,2243.2,0.044]
[1770208087249,2.62807515,2244.3,2243.1,0.044]
[1770208087450,2.62807515,2244.3,2243.1,1.20951783]
[1770208087745,2.62807515,2244.3,2243.3,1.16551783]
[1770208088145,2.62807515,2243.9,2243.4,1.16551783]
[1770208088352,2.62807515,2243.9,2243.1,1.16551783]
[1770208088549,2.62807515,2243.9,2242.8,0.26725]
[1770208088550,2.62807515,2243.5,2240.7,1.02792]
[1770208088751,2.62807515,2242.1,2240.6,0.22347]
[1770208088951,2.62807515,2242.1,2240.8,0.22344]
[1770208089154,2.62807515,2242.1,2240.9,0.16951951]
[1770208089656,0.00499136,2242.1,2240.9,0.17424241]
[1770208089951,0.00499136,2242.1,2240.9,0.0047229]
[1770208090156,0.00499136,2242.1,2241.1,0.16925821]
[1770208090157,2.63306651,2242.1,2241.1,0.16925821]
[1770208090359,2.62807515,2241.7,2240.9,0.0047229]
[1770208090550,2.58992889,2241.5,2240.5,0.16925821]
[1770208090851,2.58992889,2241.5,2240.3,0.44635883]
[1770208090852,2.62807515,2241.3,2240.3,0.44635883]
[1770208091056,5.21800404,2240.9,2239.6,0.044]
[1770208091255,2.62807515,2240.9,2239.6,0.044]
[1770208091453,5.21800404,2240.9,2239.7,0.044]
[1770208091654,2.62807515,2240.9,2239.7,0.044]
[1770208092152,2.79336774,2240.9,2239.4,0.22359]
[1770208092356,2.58992889,2241.2,2239.5,0.916]
[1770208092961,2.58992889,2241.2,2239.5,1.14481898]
[1770208093155,2.58992889,2241.1,2239.6,0.16373107]
[1770208093758,2.58992889,2241.1,2239.8,0.16373107]
[1770208093958,2.58992889,2241.1,2239.9,0.20773107]
[1770208094155,2.58992889,2241.0,2240.0,0.16373107]
[1770208094352,5.15471303,2241.3,2240.0,0.16373107]
[1770208094557,5.15471303,2241.5,2240.0,0.16373107]
[1770208094756,7.78278818,2241.7,2240.1,0.16373107]
[1770208095058,5.15471303,2241.8,2240.2,0.16373107]
[1770208095262,5.15471303,2241.9,2240.2,0.16373107]
[1770208095459,5.15471303,2241.9,2240.3,0.16373107]
[1770208095659,5.15471303,2242.0,2240.3,0.16373107]
[1770208096160,2.62807515,2240.7,2239.2,0.22361]
[1770208096461,2.62807515,2240.4,2239.5,0.17475849]
[1770208096658,0.00433806,2240.4,2239.5,0.17475849]
[1770208097055,0.00433806,2240.4,2239.5,1.04675849]
[1770208097258,2.63241321,2240.4,2239.5,0.17475849]
[1770208097665,2.62807515,2240.0,2239.5,0.17475849]
[1770208098160,2.63241321,2240.4,2239.5,0.17475849]
[1770208098362,4.80255213,2240.3,2239.5,0.17475849]
[1770208098562,4.80255213,2240.2,2239.5,0.17475849]
[1770208098762,4.80255213,2240.1,2239.5,0.17475849]
[1770208098962,4.80255213,2240.0,2239.5,0.17475849]
[1770208099157,4.80255213,2239.9,2239.5,0.17475849]
[1770208099359,2.63241321,2240.4,2239.5,0.17475849]
[1770208099561,4.75372645,2240.3,2239.5,0.17475849]
[1770208099757,0.00433806,2240.4,2239.5,0.17475849]
[1770208099961,7.8378877,2241.2,2239.5,0.17475849]
[1770208099962,2.62807515,2241.2,2239.6,0.16817874]
[1770208100158,4.75556711,2241.1,2239.9,0.16817874]
[1770208100361,2.62807515,2240.8,2240.1,0.16817874]
[1770208100566,4.75556711,2240.7,2240.1,0.16817874]
[1770208100766,2.62807515,2240.8,2240.2,0.16817874]
[1770208100962,5.20981255,2241.3,2240.2,0.16817874]
[1770208100963,4.68963969,2240.7,2240.2,0.16817874]
[1770208101168,0.00389737,2240.7,2240.2,0.16817874]
[1770208101358,2.62807515,2241.2,2240.2,0.16817874]
[1770208101565,2.62807515,2241.6,2240.4,0.16817874]
[1770208101865,2.62807515,2242.0,2240.8,0.16896309]
[1770208102066,4.68806596,2241.9,2240.8,0.16896309]
[1770208102262,4.68806596,2241.8,2240.8,0.16896309]
[1770208102466,4.68806596,2241.7,2240.9,0.16896309]
[1770208102663,0.00542627,2241.9,2240.9,0.16896309]
[1770208102867,4.66731732,2241.8,2241.1,0.16896309]
[1770208103071,4.66731732,2241.7,2241.3,0.16896309]
[1770208103371,0.00542627,2241.9,2241.3,0.16896309]
[1770208103570,4.66714201,2241.8,2241.0,0.8479]
[1770208103866,4.66714201,2241.7,2241.1,0.044]
[1770208104061,4.66714201,2241.6,2241.1,0.044]
[1770208104259,0.00542627,2241.9,2241.1,0.044]
[1770208104463,4.66699818,2241.8,2241.0,0.8919]
[1770208104664,4.66699818,2241.7,2241.0,0.85142917]
[1770208104865,4.66699818,2241.6,2239.2,1.02863]
[1770208105066,4.66699818,2241.5,2239.9,0.917]
[1770208105258,4.66699818,2241.4,2239.9,0.917]
[1770208105460,4.66699818,2241.3,2240.3,0.16373107]
[1770208105661,3.5098108,2241.8,2240.3,0.16373107]
[1770208105861,3.5098108,2240.6,2238.6,0.16951952]
[1770208106062,3.5098108,2240.0,2238.9,0.39148408]
[1770208106268,3.5098108,2239.5,2238.0,0.22373]
[1770208106571,4.82632234,2239.4,2238.0,0.22373]
[1770208106769,4.82632234,2239.3,2238.0,0.22373]
[1770208106971,4.66102975,2239.2,2238.0,0.22742668]
[1770208107270,4.66102975,2239.1,2238.1,0.044]
[1770208107471,3.67510339,2238.8,2237.4,0.22379]
[1770208107670,4.66102975,2238.7,2237.5,0.917]
[1770208107870,0.22363,2239.1,2237.5,0.917]
[1770208108071,0.22363,2239.1,2237.6,0.917]
[1770208108072,4.64641763,2239.0,2237.6,0.917]
[1770208108366,4.64641763,2238.9,2237.7,0.16373107]
[1770208108574,4.64641763,2238.8,2237.7,0.16687949]
[1770208108771,0.22363,2239.1,2237.7,0.16687949]
[1770208109071,4.63982474,2239.0,2237.7,0.16687949]
[1770208109375,4.63512605,2238.9,2237.8,0.044]
[1770208109568,4.63512605,2238.8,2237.8,0.044]
[1770208109869,3.5098108,2239.0,2237.8,0.20110786]
[1770208110165,4.63489686,2238.9,2237.9,0.044]
[1770208110366,4.63109199,2238.8,2237.9,0.044]
[1770208110668,0.15367383,2238.9,2237.8,0.15710786]
[1770208110872,4.63110328,2238.8,2237.9,0.044]
[1770208111073,0.37731383,2238.9,2237.8,0.15710786]
[1770208111269,0.37731383,2238.9,2237.9,0.044]
[1770208111463,0.15367383,2238.6,2236.0,0.15710786]
[1770208111666,3.5098108,2237.9,2236.2,0.15710786]
[1770208111962,0.15367383,2238.7,2237.1,0.15710786]
[1770208112162,0.15367383,2239.1,2237.4,0.15710786]
[1770208112371,4.62775297,2239.0,2237.5,0.15710786]
[1770208112579,0.15367383,2239.1,2237.5,0.16212461]
[1770208113073,0.15367383,2239.1,2237.7,0.15710786]
[1770208113270,0.22362,2239.2,2237.7,0.15710786]
[1770208113469,3.66348463,2239.4,2237.7,0.38085786]
[1770208113667,4.62892812,2239.2,2237.8,0.15710786]
[1770208113872,3.66348463,2239.4,2237.8,0.15710786]
[1770208114064,4.85240174,2239.2,2237.8,0.15710786]
[1770208114372,4.62879768,2239.1,2238.0,0.15710786]
[1770208114671,4.62879768,2239.0,2238.1,0.20110786]
[1770208114871,0.22362,2239.2,2238.2,0.044]
[1770208115072,4.62935885,2239.1,2238.1,0.15710786]
[1770208115272,4.62935885,2239.0,2238.2,0.044]
[1770208115468,0.22362,2239.2,2238.2,0.044]
[1770208115769,4.63286247,2239.1,2238.2,0.20110786]
[1770208115962,0.15367383,2239.4,2238.3,0.15710786]
[1770208116163,4.6334957,2239.2,2238.3,0.15710786]
[1770208116363,4.6334957,2239.1,2238.3,0.15710786]
[1770208116570,5.36318075,2239.7,2238.3,0.15710786]
[1770208116770,5.43337255,2239.8,2238.3,0.15710786]
[1770208116972,5.43337255,2239.8,2238.5,0.15710786]
[1770208117176,4.64969841,2239.2,2238.6,0.044]
[1770208117470,5.20981255,2239.6,2238.6,0.044]
[1770208117670,4.63526258,2239.2,2238.6,0.044]
[1770208117872,5.20981255,2239.7,2238.6,0.044]
[1770208118273,4.64612721,2239.2,2238.6,0.044]
[1770208118470,5.20981255,2239.6,2238.7,0.15710786]
[1770208118670,4.63180498,2239.2,2238.7,0.15710786]
[1770208118967,5.20981255,2239.7,2238.7,0.15710786]
[1770208119372,4.63477817,2239.6,2238.9,0.15710786]
[1770208119565,1.02864,2239.2,2236.6,1.02979]
[1770208119765,4.6263154,2239.1,2237.6,0.16987114]
[1770208119970,4.6263154,2239.0,2238.2,0.16987114]
[1770208120274,5.20981255,2239.9,2238.6,0.16987114]
[1770208120467,5.43334255,2240.0,2238.8,0.16987114]
[1770208120666,0.22357,2239.7,2238.2,0.22371]
[1770208120872,0.22357,2239.7,2238.0,0.22373]
[1770208121075,0.22364,2239.0,2237.5,0.00501675]
[1770208121277,0.00458818,2239.0,2237.8,0.22375]
[1770208121573,0.00458818,2239.0,2237.9,0.918]
[1770208121972,0.00458818,2239.0,2238.0,0.918]
[1770208122772,0.00458818,2239.0,2238.1,0.15710786]
[1770208122966,0.00458818,2239.0,2237.9,0.874]
[1770208122967,0.38189201,2239.0,2237.9,0.874]
[1770208123171,0.38189201,2239.0,2238.0,0.044]
[1770208123870,0.38189201,2239.0,2238.1,0.044]
[1770208124376,39.42859289,2239.0,2237.5,0.00501675]
[1770208124676,39.42859289,2239.0,2238.2,0.044]
[1770208124877,39.42859289,2239.0,2237.8,0.15710786]
[1770208125077,39.42859289,2239.0,2237.9,1.07510786]
[1770208125575,39.04670088,2238.9,2237.9,1.07510786]
[1770208125766,39.04670088,2238.9,2237.9,0.15710786]
[1770208125971,39.04670088,2238.9,2238.0,0.918]
[1770208126171,0.00458818,2239.0,2238.1,0.15710786]
[1770208126371,13.5974415,2239.8,2238.9,0.22364]
[1770208126573,0.16987114,2240.4,2239.0,0.26763]
[1770208126774,11.99999026,2240.2,2239.2,0.22361]
[1770208127477,12.00457173,2240.2,2239.3,0.918]
[1770208127672,12.00457173,2240.2,2238.6,1.0289]
[1770208127673,3.59882339,2239.4,2238.0,0.22373]
[1770208127875,0.15367383,2239.6,2238.1,0.044]
[1770208128176,11.99999026,2239.5,2238.3,0.2237]
[1770208128373,0.15367383,2239.9,2238.4,0.874]
[1770208128669,0.22359,2239.5,2238.4,0.00516174]
[1770208128871,0.22364,2239.0,2238.1,0.044]
[1770208129072,0.15367383,2239.3,2238.2,0.044]
[1770208129371,11.99999026,2239.2,2238.3,0.044]
[1770208129576,11.99999026,2239.2,2238.4,0.044]
[1770208129769,11.99999026,2239.2,2238.4,0.15710786]
[1770208129974,11.99999026,2239.2,2238.5,0.044]
[1770208130167,11.99999026,2239.2,2238.6,0.044]
[1770208130778,11.99999026,2239.2,2238.4,0.16203213]
[1770208130978,11.99999026,2239.2,2238.5,0.044]
[1770208131175,11.99999026,2239.2,2238.6,0.044]
[1770208132071,11.99999026,2239.2,2238.4,0.00492427]
[1770208132276,11.99999026,2239.2,2238.2,0.044]
[1770208132277,0.22363,2239.1,2238.2,0.044]
[1770208132470,0.37730383,2239.1,2238.2,0.044]
[1770208132876,12.15366409,2239.0,2238.0,0.044]
[1770208133072,12.15366409,2239.0,2237.9,0.874]
[1770208133472,12.15366409,2239.0,2238.0,0.044]
[1770208133673,12.15366409,2239.0,2237.7,0.16149041]
[1770208133871,12.37729409,2239.0,2237.7,0.16149041]
[1770208134078,12.37729409,2239.0,2237.8,0.918]
[1770208134375,5.21265963,2238.9,2237.8,0.918]
[1770208134577,5.21265963,2239.4,2238.1,0.15710786]
[1770208134877,5.21265963,2239.5,2238.2,0.15710786]
[1770208135074,11.99999026,2239.4,2238.3,0.918]
[1770208135277,11.99999026,2239.4,2238.3,1.07510786]
[1770208135278,5.21265963,2239.3,2238.3,1.07510786]
[1770208135473,5.21265963,2239.3,2237.4,4.99723353]
[1770208135474,0.22377,2237.7,2236.6,0.17028441]
[1770208135678,9.00091942,2237.6,2236.2,0.22391]
[1770208135980,0.15367383,2237.1,2235.7,0.044]
[1770208136280,3.74722705,2237.0,2236.0,0.22393]
[1770208136473,0.00347371,2237.0,2236.0,0.22745583]
[1770208136674,16.11940702,2236.9,2235.3,0.268]
[1770208136974,3.74189293,2236.8,2235.4,0.918]
[1770208137282,0.15367383,2236.6,2235.5,0.044]
[1770208137480,3.74189293,2236.5,2235.5,0.044]
[1770208137681,11.99999026,2236.7,2235.6,0.16788725]
[1770208137881,11.99999026,2236.5,2235.6,0.16788725]
[1770208138081,0.22386,2236.8,2235.6,0.16788725]
[1770208138082,11.99999026,2236.7,2235.6,0.16788725]
[1770208138776,11.99999026,2236.7,2235.7,0.044]
[1770208139080,3.72481119,2236.6,2235.6,0.16788725]
[1770208139283,3.72481119,2236.5,2235.5,0.16360389]
[1770208139580,11.99999026,2236.5,2235.5,0.16360389]
[1770208139978,3.71846486,2236.4,2235.6,0.918]
[1770208140183,11.99999026,2236.5,2235.6,1.07690952]
[1770208140385,11.99999026,2236.5,2235.7,0.15890952]
[1770208140781,11.99999026,2236.5,2235.8,0.044]
[1770208141292,0.00347371,2237.0,2235.9,0.15890952]
[1770208141586,0.00347371,2237.0,2236.1,0.15890952]
[1770208141587,11.99999026,2236.9,2236.1,0.15890952]
[1770208141880,11.99999026,2236.9,2236.2,0.20290952]
[1770208142477,11.99999026,2236.9,2236.2,0.15890952]
[1770208142683,0.16241895,2236.4,2234.9,0.15890952]
[1770208142981,15.70924215,2236.8,2235.6,0.15890952]
[1770208142982,11.99999026,2236.8,2235.6,0.15890952]
[1770208143187,11.99999026,2236.7,2235.6,0.15890952]
[1770208143387,11.99999026,2236.9,2235.6,0.15890952]
[1770208143685,11.99999026,2236.9,2235.6,0.16379533]
[1770208144286,12.22384026,2236.9,2235.8,0.15890952]
[1770208144487,12.22384026,2236.9,2235.9,0.044]
[1770208144688,12.22384026,2236.9,2236.0,0.044]
[1770208144982,12.22384026,2236.9,2235.8,1.03290952]
[1770208145288,12.22384026,2236.9,2236.1,0.044]
[1770208146690,11.99999026,2236.9,2236.2,0.15890952]
[1770208146890,0.00347371,2237.0,2236.2,0.15890952]
[1770208147093,0.16241895,2237.8,2236.2,0.15890952]
[1770208147288,11.99999026,2237.7,2236.3,0.15890952]
[1770208147487,11.99999026,2237.7,2236.3,0.38280952]
[1770208147686,11.99999026,2237.7,2236.4,0.15890952]
[1770208148092,12.00352647,2237.7,2236.6,0.15890952]
[1770208148289,0.2237,2238.4,2237.0,0.15890952]
[1770208148593,11.99999026,2238.3,2237.5,0.15890952]
[1770208148788,11.99999026,2238.9,2237.5,0.15890952]
[1770208149287,11.99999026,2238.9,2238.1,0.15890952]
[1770208149288,0.00543391,2238.9,2238.1,0.15890952]
[1770208149488,0.16241895,2239.8,2238.3,0.15890952]
[1770208149693,15.71208559,2239.7,2238.3,0.15890952]
[1770208149898,11.99999026,2239.7,2238.5,0.15890952]
[1770208150294,11.99999026,2239.7,2237.5,0.17141748]
[1770208150295,0.00660326,2239.3,2237.5,0.17141748]
[1770208150598,0.00660326,2239.3,2237.7,0.16699448]
[1770208150599,3.93323305,2239.2,2237.7,0.16699448]
[1770208150896,3.93323305,2239.2,2237.9,0.16699448]
[1770208150897,11.99999026,2239.2,2237.9,0.16699448]
[1770208151488,11.99999026,2239.2,2238.1,0.16699448]
[1770208151700,11.99999026,2239.2,2238.3,0.16684538]
[1770208151890,11.99999026,2239.2,2238.5,0.16684538]
[1770208152095,11.99999026,2239.2,2238.6,0.044]
[1770208152800,11.99999026,2239.1,2238.5,0.16684538]
[1770208153200,11.99999026,2239.1,2238.6,0.044]
[1770208153597,11.99999026,2239.1,2238.1,0.17048582]
[1770208154600,12.22361026,2239.1,2238.2,0.044]
[1770208154799,11.99999026,2239.1,2237.7,0.21448582]
[1770208155099,0.22365,2238.9,2237.7,0.21448582]
[1770208155491,11.99999026,2238.8,2237.7,0.21448582]
[1770208155697,12.22364026,2238.8,2237.7,0.17048582]
[1770208155904,12.22364026,2238.8,2237.7,0.21448582]
[1770208157398,3.93732768,2238.7,2237.8,0.044]
[1770208157596,3.62968802,2238.5,2236.0,0.1702961]
[1770208157803,0.22375,2237.9,2236.2,0.1702961]
[1770208158100,0.22375,2237.8,2236.2,0.1702961]
[1770208158400,11.96044032,2237.8,2236.3,0.1702961]
[1770208158597,3.79420413,2237.7,2236.5,0.1702961]
[1770208158801,0.22379,2237.4,2236.6,0.044]
[1770208159694,15.75375442,2237.3,2236.3,0.0485329]
[1770208159899,3.7932541,2237.2,2236.3,0.2191345]
[1770208160198,3.7932541,2237.2,2236.3,0.1751345]
[1770208160405,3.7932541,2237.2,2236.4,0.044]
[1770208160802,3.7932541,2237.2,2236.3,0.1751345]
[1770208161003,3.7932541,2237.2,2235.5,0.22398]
[1770208161004,11.73669032,2237.1,2235.9,0.2146016]
[1770208161204,3.7932541,2237.0,2235.9,0.1706016]
[1770208161404,3.7932541,2237.0,2236.1,0.1706016]
[1770208161705,11.73669032,2236.9,2236.1,0.1706016]
[1770208162009,11.73669032,2236.9,2236.1,0.17405824]
[1770208162707,11.73669032,2236.8,2236.1,0.17405824]
[1770208162908,11.73669032,2237.0,2236.1,0.17405824]
[1770208165202,0.2239,2236.3,2234.8,0.17243824]
[1770208165407,11.96060032,2236.2,2234.9,0.044]
[1770208165603,3.79222986,2236.1,2234.9,0.044]
[1770208165906,3.79222986,2236.0,2234.9,0.21854299]
[1770208166104,0.00348421,2236.0,2235.1,0.17454299]
[1770208166402,11.73669032,2235.9,2235.1,8.92254299]
[1770208166597,11.73669032,2235.9,2235.2,0.17454299]
[1770208167508,11.73669032,2235.9,2235.3,8.793]
[1770208167806,11.73669032,2235.9,2235.2,0.17454299]
[1770208168106,11.73669032,2235.9,2235.3,8.793]
[1770208168407,11.73669032,2235.9,2235.4,8.749]